Cogmind - Beta 15 @@@ ROGUE MODE // 2025.05.22 @ 23:15:27 Player: Zaros426 Result: Destroyed by Piercing Trap Performance ------------- Evolutions (0) 0 Regions Visited (3) 600 Robots Destroyed (48) 240 Value Destroyed (1045) 1045 Prototype IDs (13) 260 Alien Tech Used (0) 0 Bonus (46) 46 TOTAL SCORE: 2191 Bonus ------- Follower Combat Kills 228 Friendly Fire -182 Cogmind --------- Core Integrity 0/250 Matter 95/300 Energy 166/170 System Corruption 4% Temperature Cool (2) Movement Treading (160) Location -10/Subcaves Parts ------- > --- POWER (1) -------- Makeshift Power Source > --- PROPULSION (2) --- Light Treads Spiked Treads > --- UTILITY (2) ------ Large Storage Unit Makeshift Light Armor Plating > --- WEAPON (2) ------- Subdweller Beam Cannon (fused) Subdweller Machine Gun > --- INVENTORY (15) --- Flightbrick ECM Suite Scrap Shield Hardlight Generator Hacking Suite Authchip [Propulsion] Authchip [Propulsion] Authchip [Device] Authchip [Processor] Subdweller Machine Gun Subdweller Shrapnel Launcher Peak State ------------ > --- POWER ------------ Makeshift Power Source > --- PROPULSION ------- Light Treads Light Treads > --- UTILITY ---------- Large Storage Unit Makeshift Light Armor Plating > --- WEAPON ----------- Subdweller Beam Cannon Makeshift Axe > --- INVENTORY -------- Flightbrick Scrap Shield Hardlight Generator Hacking Suite Authchip [Propulsion] Authchip [Propulsion] Authchip [Device] Authchip [Processor] Subdweller Machine Gun Subdweller Machine Gun Rocket Launcher [Rating: 23] Favorites ----------- Power Light Nuclear Core Engine Ion Engine Power Core Light Nuclear Core Propulsion Light Treads Treads Light Treads Utility Large Storage Unit Device Seismic Detector Storage Large Storage Unit Protection Makeshift Light Armor Plating Weapon Assault Rifle Energy Gun EM Pulse Gun Energy Cannon Subdweller Beam Cannon Ballistic Gun Assault Rifle Launcher Rocket Launcher Special Weapon Mining Laser Slashing Weapon Makeshift Axe Build | -11 -10 -10 -10 ------- Run | Yrd Mat Min Sub Slots Evolved . | . . . . Power . | . . . . Propulsion . | . . . . Utility . | . . . . Weapon . | . . . . Parts Attached 36 | 7 11 3 15 Power 6 | 1 2 1 2 Engine 5 | 1 2 . 2 Core 1 | . . 1 . Reactor . | . . . . Propulsion 6 | 2 1 . 3 Treads 6 | 2 1 . 3 Leg . | . . . . Wheel . | . . . . Hover . | . . . . Flight . | . . . . Utility 7 | 1 4 1 1 Device 3 | . 2 1 . Storage 2 | 1 1 . . Processor . | . . . . Hackware . | . . . . Protection 2 | . 1 . 1 Artifact . | . . . . Weapon 17 | 3 4 1 9 Energy Gun 3 | 1 1 1 . Energy Cannon 2 | . . . 2 Ballistic Gun 7 | 2 1 . 4 Ballistic Cannon . | . . . . Launcher 2 | . . . 2 Special Weapon 2 | . 2 . . Impact Weapon . | . . . . Slashing Weapon 1 | . . . 1 Piercing Weapon . | . . . . Special Melee Weapon . | . . . . Unidentified Prototypes . | . . . . Parts Lost 2 | . 1 1 . Power 1 | . 1 . . Propulsion . | . . . . Utility . | . . . . Weapon 1 | . . 1 . Highest Loss Streak 1 | . 1 1 . To Critical Strikes . | . . . . Average Backups 12 | 2 10 15 12 Power . | . . . . Propulsion 1 | . . 2 1 Utility 8 | 1 7 10 8 Weapon 2 | 1 1 2 2 Tool/Special . | . . . . Unused Backups 19 | 1 4 2 12 Power . | . . . . Propulsion 1 | . . . 1 Utility 16 | 1 4 1 10 Weapon 1 | . . 1 . Tool/Special 1 | . . . 1 Average Slot Usage (%) 97 | . 95 92 99 Engine 8 | . 13 7 5 Core 5 | . . 6 8 Treads 28 | . 28 28 28 Device 3 | . 9 . 1 Storage 14 | . 14 14 14 Protection 10 | . . 14 12 Energy Gun 5 | . 12 6 . Energy Cannon 6 | . . . 11 Ballistic Gun 14 | . 14 14 14 Peak Build Rating 23 | 6 10 12 23 Average Rating 13 | 5 8 10 18 On Entrance 7 | . 6 10 12 Naked Turns . | . . . . Heaviest Build 44 | 14 32 31 44 Greatest Support 40 | 40 40 40 40 Greatest Overweight (x) 1 | . . . 1 Average Overweight (x) . | . . . . Largest Inventory Capacity 15 | 8 15 15 15 Average Capacity 14 | 7 12 15 15 Most Carried 15 | 5 15 15 15 Average Carried 13 | 2 10 14 14 Final Capacity 15 | 8 15 15 15 Final Carried 15 | 5 15 15 15 Class Distribution -------------------- 100% | Mutant Dominant Class ---------------- Mutant | -10/Materials Mutant | -10/Mines Mutant | -10/Subcaves Resources | -11 -10 -10 -10 ----------- Run | Yrd Mat Min Sub Matter Collected 1404 | 299 381 164 560 Remotely . | . . . . Salvage Created 1555 | 190 707 208 450 Parts 103 | 17 46 10 30 Haulers Intercepted 2 | . 2 . . Recyclers Shooed 2 | . 2 . . Parts Field Recycled . | . . . . Retrieved Matter . | . . . . Parts Self-Destructed 16 | . . . 16 Prevented . | . . . . Kills | -11 -10 -10 -10 ------- Run | Yrd Mat Min Sub Combat Hostiles Destroyed 31 | . 19 2 10 Guns 22 | . 17 2 3 Cannons 3 | . . . 3 AOE 6 | . 2 . 4 Classes Destroyed 10 | 2 5 . 3 Tunneler 6 | 5 . 1 . Hauler 2 | . 2 . . Recycler 3 | 1 1 1 . Operator 1 | . 1 . . Turret 2 | . . . 2 Watcher 2 | . 2 . . Swarmer 11 | . 11 . . Grunt 11 | . 8 2 1 Artisan 2 | . . . 2 Subdweller 10 | . . . 10 Best Kill Streak 4 | 2 4 2 2 Combat Bots Only 4 | . 4 2 2 Max Kills in Single Turn 2 | 1 2 1 2 Gunslinging 1 | . 1 . . Exploded 2 | . 1 . 2 Melee . | . . . . Uniques/NPCs Destroyed . | . . . . Combat | -11 -10 -10 -10 -------- Run | Yrd Mat Min Sub Hostile Shots Fired 206 | . 103 14 89 Missed 69 | . 32 4 33 Hits 137 | . 71 10 56 Projectile 137 | . 71 10 56 Critical Strikes 2 | . 1 . 1 Damage Taken 1550 | . 592 153 805 Core 260 | . 104 15 141 Absorbed by Shields . | . . . . Core Remaining (%) 100 | 100 . . . Volleys Fired 161 | 11 65 19 66 Largest 2 | 2 2 2 2 Hottest 110 | 60 100 60 110 Shots Fired 263 | 22 113 23 105 Gun 197 | 22 109 23 43 Cannon 41 | . . . 41 Launcher 21 | . . . 21 Special 4 | . 4 . . Kinetic 148 | 18 63 19 48 Thermal 48 | . 4 . 44 Explosive 13 | . . . 13 Electromagnetic 54 | 4 46 4 . Robot Hit Streak 8 | 8 5 8 7 Robot Miss Streak 4 | 1 4 1 4 Penetration Max . | . . . . Secondary Targets 3 | . 3 . . Max Gunslinging Chain 1 | . 1 . . Shots Hit Robots 129 | 16 55 19 39 Core Hits 77 | 9 32 8 28 Critical Kills . | . . . . Critical Parts Destroyed 1 | . . 1 . Critical Strikes 2 | . 1 1 . Destroy 1 | . . 1 . Corrupt 1 | . 1 . . Melee Attacks 2 | . . . 2 Impact . | . . . . Slashing 2 | . . . 2 Piercing . | . . . . Sneak Attacks 2 | . . . 2 Combat Hostiles . | . . . . Follow-up Attacks . | . . . . Damage Inflicted 3286 | 173 899 251 1963 Guns 1451 | 173 742 251 285 Cannons 296 | . . . 296 Explosions 1377 | . 157 . 1220 Melee 162 | . . . 162 Ramming . | . . . . Kinetic 1538 | 136 378 212 812 Thermal 453 | . 157 . 296 Explosive 693 | . . . 693 Electromagnetic 440 | 37 364 39 . Impact . | . . . . Slashing 162 | . . . 162 Piercing . | . . . . Highest Corruption 4 | . 4 4 4 Average Corruption 3 | . 3 4 4 Corruption Purged . | . . . . Corruption Blocked . | . . . . Effects 128 | . 24 30 74 Message Errors 32 | . 6 8 18 Matter Fused 30 | . 7 9 14 Heat Flow Errors 17 | . 4 3 10 Energy Discharges 16 | . 3 3 10 Parts Fused 2 | . . . 2 Data Loss (minor) 16 | . 2 3 11 Data Loss (major) 3 | . . 1 2 Misfires 7 | . 1 1 5 Alerts 4 | . . 2 2 Weapon Failures 1 | . 1 . . Overload Shots . | . . . . Overflow Damage 59 | . 18 . 41 Projectiles . | . . . . Explosions 19 | . 18 . 1 Melee 40 | . . . 40 Knockbacks . | . . . . Impact . | . . . . Kinetic . | . . . . Secondary . | . . . . Self-Inflicted Damage 62 | . . . 62 Shots 2 | . . . 2 Rammed . | . . . . Targets Rammed . | . . . . Kicked . | . . . . Crushed . | . . . . Highest Temperature 266 | . 266 242 255 Average Temperature 58 | . 65 65 52 Received Heat Transfer 375 | . 36 84 255 Effects 5 | . 4 1 . Interference 5 | . 4 1 . Siege Activations . | . . . . Martial Activations . | . . . . Shielding Activations . | . . . . Robots Disrupted . | . . . . Combat Hostiles . | . . . . Robots Corrupted . | . . . . Combat Hostiles . | . . . . Parts Fried . | . . . . Impact Corruptions . | . . . . Robots Melted . | . . . . Combat Hostiles . | . . . . Parts Melted 2 | . 1 . 1 Heat Transferred 557 | . 150 . 407 Parts Sabotaged . | . . . . Parts Stolen . | . . . . Parts Stripped . | . . . . Power Chain Reactions 3 | . 3 . . Alert | -11 -10 -10 -10 ------- Run | Yrd Mat Min Sub Maximum Alert Level . | . . . . Low Security (%) 100 | 100 100 100 . Level 1 . | . . . . Level 2 . | . . . . Level 3 . | . . . . Level 4 . | . . . . Level 5 . | . . . . High Security . | . . . . Max Security . | . . . . Peak Influence 144 | 10 144 51 . Initial 51 | . . 51 . Average 33 | 2 56 6 . Influence Increases 925 | 30 619 106 170 Destroy 0b10 Robot/C 580 | . 380 80 120 Destroy 0b10 Robot/NC 70 | 30 30 10 . Destroy Leader 108 | . 88 10 10 Allied During Kill 16 | . . 6 10 Successful Hack 5 | . 5 . . Select Force Hacks 30 | . 30 . . Disable Machine 15 | . 15 . . Destroy Structure 11 | . 11 . . Lose Combat Pursuer 90 | . 60 . 30 Influence Decreases 925 | 30 487 238 170 Entered New Map 81 | . . 81 . Time Decay 804 | 30 477 147 150 Lost Part 20 | . 10 10 . Lost Ally 20 | . . . 20 Squads Dispatched 5 | . 4 1 . Investigation 4 | . 3 1 . Extermination . | . . . . Reinforcement 1 | . 1 . . Assault . | . . . . Garrison . | . . . . Intercept . | . . . . Searches Triggered . | . . . . Construction Impeded . | . . . . Haulers Reinforced . | . . . . Active Scanning Responses . | . . . . Cargo Convoy Interrupts . | . . . . Stealth | -11 -10 -10 -10 --------- Run | Yrd Mat Min Sub Distress Signals 2 | . 2 . . Communications Jammed . | . . . . Distress Signals . | . . . . Times Spotted 53 | . 27 4 22 Peak Tracking Total 5 | . 3 2 5 Tactical Retreats 4 | . 3 . 1 Traps | -11 -10 -10 -10 ------- Run | Yrd Mat Min Sub Traps Triggered 4 | . 3 . 1 Indirectly . | . . . . Trap Hack Attempts . | . . . . Triggered . | . . . . Disarmed . | . . . . Reprogrammed . | . . . . Reused . | . . . . Traps Extracted . | . . . . Installed . | . . . . Triggered . | . . . . Most Traps Carried 1 | . . . 1 Machines | -11 -10 -10 -10 ---------- Run | Yrd Mat Min Sub Machines Disabled 6 | . 1 . 5 Max in Single Turn 3 | . 1 . 3 Machines Repaired . | . . . . Machines Dismantled . | . . . . Machines Sabotaged . | . . . . Overloaded Fab Kills . | . . . . Hacking | -11 -10 -10 -10 --------- Run | Yrd Mat Min Sub Machines Accessed 11 | . 8 1 2 Terminals 6 | . 6 . . Fabricators . | . . . . Repair Stations . | . . . . Recycling Units 2 | . 2 . . Scanalyzers . | . . . . Garrison Access . | . . . . Total Hacks 38 | . 24 1 13 Successful 30 | . 16 1 13 Failed 8 | . 8 . . Catastrophic . | . . . . Database Lockouts . | . . . . Manual 20 | . 20 . . Terminals 19 | . 19 . . Fabricators . | . . . . Repair Stations . | . . . . Recycling Units 5 | . 5 . . Scanalyzers . | . . . . Garrison Access . | . . . . Terminal Hacks 20 | . 6 1 13 Record 12 | . . . 12 Robot Analysis 2 | . 2 . . Prototype ID Bank 1 | . 1 . . Open Door 1 | . . 1 . Terminal Index 1 | . 1 . . Locate Traps 1 | . 1 . . Zone Layout 1 | . 1 . . Proto ID Catalog 1 | . . . 1 Fabricator Hacks . | . . . . Repair Station Hacks . | . . . . Recycling Unit Hacks 1 | . 1 . . Retrieve Components 1 | . 1 . . Scanalyzer . | . . . . Garrison Access Hacks . | . . . . Unauthorized Hacks 9 | . 9 . . Terminals 8 | . 8 . . Botnet 3 | . 3 . . Skim 5 | . 5 . . Fabricators . | . . . . Repair Stations . | . . . . Recycling Units 1 | . 1 . . Tunnel 1 | . 1 . . Scanalyzers . | . . . . Garrison Access . | . . . . Data Cores Recovered . | . . . . Used . | . . . . Hacking Detections 6 | . 6 . . Full Trace Events 2 | . 2 . . Feedback Events . | . . . . Feedback Blocked . | . . . . Robot Schematics Acquired . | . . . . Robots Built . | . . . . Authchips . | . . . . Time . | . . . . Total Robot Build Rating . | . . . . Part Schematics Acquired . | . . . . Parts Built . | . . . . Authchips . | . . . . Time . | . . . . Total Part Build Rating . | . . . . Parts Repaired . | . . . . Time . | . . . . Parts Recycled . | . . . . Recycled Matter . | . . . . Retrieved Matter . | . . . . Retrieved Components 10 | . 10 . . Parts Scanalyzed . | . . . . Part Schematics Acquired . | . . . . Parts Damaged . | . . . . Bothacking | -11 -10 -10 -10 ------------ Run | Yrd Mat Min Sub Used RIF Installer . | . . . . Robots Hacked . | . . . . Non-combat . | . . . . Combat . | . . . . Robot Hacks Applied . | . . . . Relay Couplers Released . | . . . . Fabnet Peak Effective % . | . . . . Robots Rewired . | . . . . Allies Hacked . | . . . . Hacks Repelled . | . . . . Allies | -11 -10 -10 -10 -------- Run | Yrd Mat Min Sub Total Allies 3 | . . 3 . Largest Group 3 | . . 3 3 Highest-Rated Group 40 | . . 40 40 Highest-Rated Ally 16 | . . 16 16 Total Orders 4 | . . 4 . STAY 2 | . . 2 . FOLLOW 2 | . . 2 . Ally Attacks 71 | . . 5 66 Total Damage 629 | . . 81 548 Kills 11 | . . 2 9 Allies Corrupted . | . . . . Allies Melted . | . . . . Intel | -11 -10 -10 -10 ------- Run | Yrd Mat Min Sub Active Infowar (turns) 1559 | . 1271 . 288 Seismic 1559 | . 1271 . 288 Robot Analysis Total 2 | . 2 . . Derelict Logs Recovered 4 | . . 3 1 Drone Launches . | . . . . Drone Recoveries . | . . . . Exploration | -11 -10 -10 -10 ------------- Run | Yrd Mat Min Sub Turns Passed 7217 | 146 1838 1444 3789 Spaces Moved 3796 | 63 972 806 1955 Core 2 | 2 . . . Treads 3794 | 61 972 806 1955 Legs . | . . . . Wheels . | . . . . Hover . | . . . . Flight . | . . . . Fastest Speed 50 | 50 160 160 160 Average Speed 170 | 156 160 160 181 Slowest Speed 250 | 160 160 160 250 Overloaded Moves . | . . . . Propulsion Burnouts . | . . . . Robots Hopped . | . . . . Potential Cave-ins . | . . . . Cave-ins Triggered . | . . . . Exploration Rate (%) 73 | 4 98 100 93 Regions Visited 3 Branch Regions 2 Pre-discovered Areas 1 | . 1 . . Known Exits Taken . | . . . . Unknown Exits Taken 3 | 1 1 1 . Scrap Searched 11 | . . 1 10 Spaces Dug 4 | . 4 . . Terrain Destroyed 143 | . 10 . 133 Melee . | . . . . Projectile 7 | . 4 . 3 AOE 136 | . 6 . 130 Terrain Rammed . | . . . . Walls Destroyed . | . . . . Machines Disabled . | . . . . Actions | -11 -10 -10 -10 --------- Run | Yrd Mat Min Sub Total 4265 | 87 1136 940 2102 Wait 176 | . 51 105 20 Move 3793 | 62 971 805 1955 Hop . | . . . . Pick Up 37 | 6 19 2 10 Fast Attach 17 | 6 2 3 6 Attach 3 | . 1 . 2 Detach 1 | . . . 1 Swap 33 | 1 14 1 17 Drop 42 | 1 13 5 23 Fire 161 | 11 65 19 66 Melee 2 | . . . 2 Ram . | . . . . Kick . | . . . . Crush . | . . . . Escape Stasis . | . . . . Rewire . | . . . . Trap . | . . . . Miscellaneous . | . . . . Route ------- -11/Scrapyard -10/Materials (discovered 6 exits: *Mat x3 / *Min x2 / *Sub) -10/Mines (discovered 3 exits: *Mat x2 / *Sub) -10/Subcaves (discovered 3 exits: [*Mat x2] / [*Rec]) History --------- Turn | Location | Event 32 | -11/Scrapyard | Discovered new exit (range 14) 147 | -11/Scrapyard | Entered Materials 338 | -10/Materials | Build established: Mutant 511 | -10/Materials | Discovered new exit (range 7) 770 | -10/Materials | Discovered new exit (range 5) 931 | -10/Materials | Discovered new exit (range 8) 1244 | -10/Materials | Discovered new exit (range 16) 1296 | -10/Materials | Discovered new exit (range 14) 1425 | -10/Materials | Discovered new exit (range 15) 1985 | -10/Materials | Entered Mines 1997 | -10/Mines | Received a Rocket Launcher from a helpful Derelict 2018 | -10/Mines | Learned Materials terminal intel 2052 | -10/Mines | Identified exit to Materials 2114 | -10/Mines | Discovered exit to Materials (range 13) 2173 | -10/Mines | Assisted by bots powering up and referring to "LRC-V3" 2393 | -10/Mines | Learned Materials garrison access intel 2570 | -10/Mines | Met a Derelict shopkeep closing up shop 3024 | -10/Mines | Discovered new exit (range 6) 3429 | -10/Mines | Entered Subcaves 3429 | -10/Subcaves | Accompanied by 3 allies 3585 | -10/Subcaves | Curiously followed by a Cobbler waking with a query about "LVR3C" 3781 | -10/Subcaves | Core integrity fell below 50% 3929 | -10/Subcaves | A swath of the cavern ceiling suddenly collapsed 5043 | -10/Subcaves | Shifting Twisted Machinery released Sub. Monowheel 5171 | -10/Subcaves | Discovered new exit (range 13) 5622 | -10/Subcaves | A swath of the cavern ceiling suddenly collapsed 5710 | -10/Subcaves | Visited 4L-MR0's lab 5728 | -10/Subcaves | Found Flightbrick 6022 | -10/Subcaves | Learned location of 1 exit from Materials 6070 | -10/Subcaves | Disturbed a concealed Subdweller 6182 | -10/Subcaves | Visited Clippyterm 6186 | -10/Subcaves | Learned Research security intel 6309 | -10/Subcaves | Core integrity fell below 20% 6497 | -10/Subcaves | Disturbed a concealed Subdweller 6503 | -10/Subcaves | Disturbed a concealed Subdweller 6739 | -10/Subcaves | Discovered new exit (range 8) 6847 | -10/Subcaves | Discovered new exit (range 10) 7218 | -10/Subcaves | Destroyed by Piercing Trap Last Messages --------------- 06648_ Dropped Rocket Launcher. 06649_ Acquired Sub. Shrapnel Launcher. 06654_ 6V|FUHKS8TUNDDT6EW8=D8Y4WW DP5EFZZM9D/P 06691_ System corrupted: FCS attempts to trigger Sub. Beam Cannon. 06691_ System corrupted: Sub. Beam Cannon misfires. 06710_ System corrupted: IFF burst signal emitted. 06715_ 14-9H8(R) destroyed. 06725_ Destroyed Scrap Shield. 06727_ 1W-1XG(R) destroyed. 06739_ EXIT=FOUND 06799_ MZOPYJ1KJHDLRY:3SBLT|HXQ,CFZOX VL 06821_ System corrupted: Component data lost. 06847_ EXIT=FOUND 06916_ System corrupted: Matter fused (-10). 06968_ System corrupted: Matter fused (-8). 07045_ System corrupted: Matter fused (-7). 07067_ System corrupted: Sub. Beam Cannon fused. 07218_ Triggered Piercing Trap. 07218_ Spikes shoot up from the floor. 07218_ Critical hit (Impale). Map ----- +----------------------------------------------------+ | ?????????????????#### #??????????????? | | ???????????????### ##?????????????? | | ???????????????# #?????????????? | | ???????????????# & ! #?????????????? | | ????####?####?### = ### ##?????????????? | | ???## ## ### & * #??# ##??????????????? | | ???# ## ! ##???###???????????????? | | ???# ##??????????????????????? | | ???# ## ##?####?????????????????? | | ???# ### ## ##????????????????? | | #### ##?# ##???????????????? | | ## # ###?## #???????????????? | | ##### ## #??????????????? | | ## ##??? #??????????????? | | ### ##????????????????????? | | #??## #####????????????????? | | ###?# #????????????????? | | #?## #### ##????????????????? | | ### #?## ##????????????????? | | ## ### #????????????????? | | ###### O ##????????????????? | | # ######???# # #????????????????? | | #####???????# ### #????????????????? | | #???????###?## ## ####??????????????? | | #??????## ##?# #### ##?????????????? | | ##??????# ## ???# @ #?????????????? | | #???????# # ???# ##?????????????? | | ##???#### ## ?? #??????????????? | | ##### ## ### ? ^ #??????????????? | | ##? ## ### #??????????????? | | ##?# ?#####??##??????????????? | | ##???? ????????????????????????? | | ### ##??????????????????????????????????? | | ??## ###???????????????????????????????????? | | ???# ##?????????????????????????????????????? | | ???###??????????????????????????????????????? | | ????????????????????????????????????????????? | | ????????????????????????????????????????????? | | ????????????????????????????????????????????? | | ????????????????????????????????????????????? | | ????????????????????????????????????????????? | | ????????????????????????????????????????????? | | ????????????????????????????????????????????? | | ????????????????????????????????????????????? | | ????????????????????????????????????????????? | | ????????????????????????????????????????????? | | ????????????????????????????????????????????? | | ????????????????????????????????????????????? | | ????????????????????????????????????????????? | | ????????????????????????????????????????????? | +----------------------------------------------------+ Best States ------------- Heat Dissipation 25 Energy Generation 15 Energy Capacity 250 Matter Stores 300 Matter Capacity 300 Sight Range 16 Terrain Scan Density 10 Armor Coverage 150 Evasion (%) 40 Recoil Reduction 2 Authchip Count 6 Item Schematics ----------------- None Robot Schematics ------------------ None Fabricated ------------ Nothing Repaired ---------- Nothing Alien Tech Used ----------------- None Achievements -------------- None Challenges ------------ None Game ------ Seed DisposableFieldInjector Manual? 0 Play Time 00:34:34 Cumulative 264.4 hours Start 2025.05.22 @ 22:39:47 End 2025.05.22 @ 23:15:27 Sessions 1 Manual Loads 0 Difficulty Rogue Special Mode None Game No. 122 Rogue 122 Adventurer 0 Explorer 0 Win Type - Total 1 Types 0/0/0/0/1/0/0/0/0/0 Lore% 65 Gallery% 73 Achievement% 64 Wizard Run 0 Options --------- Layout 0 ASCII 0 Keyboard 0 Movement Mouse Keybinds 0 Fullscreen 1 Font 24/Smallcaps Map View 183x50 Zoom Use 0% Tactical HUD 1 Map Filters NONE Filters NONE Steam 0 RUN: 70528df7-827b-4c4f-95c2-1fb07e476ad6